bitfinex/quotes_ETHUSD_20260312
["timestamp","ask_amount","ask_price","bid_price","bid_amount"]
[1773331949676,0.001,2062.3,2061.8,1.72461666]
[1773331950048,0.001,2062.3,2061.9,0.51208393]
[1773331950972,0.51044952,2063.0,2062.1,3.12667448]
[1773331951183,0.51044952,2063.0,2062.2,0.51208393]
[1773331951482,0.51044952,2063.0,2062.3,1.21223876]
[1773331951857,0.51044952,2063.0,2062.4,2.61459055]
[1773331951858,0.001,2063.0,2062.4,2.61459055]
[1773331952273,0.001,2063.0,2062.5,0.51208393]
[1773331952459,0.51044952,2063.3,2062.5,0.51208393]
[1773331952460,0.001,2063.3,2062.7,2.61459055]
[1773331952660,0.001,2063.3,2062.5,0.51208393]
[1773331952886,0.001,2063.3,2062.5,3.12667448]
[1773331953097,0.001,2063.3,2062.6,0.51208393]
[1773331953589,0.001,2063.3,2062.7,1.21200368]
[1773331953793,0.001,2063.3,2062.9,0.51208393]
[1773331954695,4.84462191,2064.2,2063.1,3.12667448]
[1773331954696,1.72057962,2064.2,2063.1,3.12667448]
[1773331954922,0.50944952,2064.1,2062.8,3.12667448]
[1773331956194,0.50944952,2063.9,2062.9,1.21188617]
[1773331957072,0.50944952,2063.8,2062.9,1.21188617]
[1773331957462,0.50944952,2063.8,2062.5,0.51208393]
[1773331957657,0.50944952,2063.7,2062.6,1.2120159]
[1773331957857,0.50944952,2063.5,2062.6,1.2120159]
[1773331958277,0.50944952,2063.5,2062.3,1.21223876]
[1773331958278,0.50944952,2063.2,2062.3,1.21223876]
[1773331959088,0.50944952,2063.2,2062.0,1.21241513]
[1773331959465,0.50944952,2063.2,2062.1,2.61459055]
[1773331959693,1.79244952,2063.1,2062.1,2.61459055]
[1773331960202,0.50944952,2063.1,2062.2,1.21229754]
[1773331960498,1.79144952,2063.3,2062.3,0.51208393]
[1773331960709,1.282,2063.3,2062.3,0.51208393]
[1773331960910,0.50944952,2063.2,2062.2,1.21229754]
[1773331961070,1.282,2063.3,2062.2,1.21229754]
[1773331961071,0.50944952,2063.0,2062.2,1.21229754]
[1773331961804,0.50944952,2063.0,2061.7,6.83144267]
[1773331961972,0.50944952,2063.0,2061.8,1.21253273]
[1773331962715,0.50944952,2063.0,2061.7,6.83144267]
[1773331962717,0.50944952,2063.0,2061.7,0.0011]
[1773331962718,0.50944952,2062.6,2061.7,0.0011]
[1773331962870,0.50944952,2062.4,2061.7,1.21368117]
[1773331963266,0.50944952,2062.4,2061.7,0.0011]
[1773331963495,0.50944952,2062.4,2061.7,1.21368962]
[1773331964005,0.50944952,2062.4,2061.6,1.21262532]
[1773331964510,1.21223876,2062.3,2061.5,0.0011]
[1773331965405,1.68072109,2062.3,2061.5,0.0011]
[1773331965927,0.46848233,2062.2,2061.5,0.0011]
[1773331966578,0.46848233,2062.0,2061.5,0.0011]
[1773331966781,1.281,2062.2,2061.5,0.0011]
[1773331967003,1.74948233,2062.2,2061.5,0.0011]
[1773331967409,1.74948233,2062.2,2062.0,0.0011]
[1773331967701,0.46848233,2062.2,2062.0,0.0011]
[1773331972327,1.28,2062.4,2062.0,0.0011]
[1773331972490,1.78571339,2062.4,2062.0,0.0011]
[1773331973485,1.21207452,2062.6,2062.0,0.0011]
[1773331973810,1.28,2062.5,2062.0,0.0011]
[1773331974313,1.71772634,2062.7,2062.0,0.0011]
[1773331974508,0.50571339,2062.7,2062.0,0.0011]
[1773331974712,1.28,2062.9,2062.0,0.45820393]
[1773331974906,1.28,2062.9,2062.2,2.61459055]
[1773331975102,0.50571339,2063.4,2062.3,0.45710393]
[1773331975631,0.50571339,2063.4,2062.4,3.07169448]
[1773331976782,0.50571339,2063.1,2062.1,4.15348014]
[1773331977187,0.50571339,2063.1,2062.1,1.21235633]
[1773331979016,0.50571339,2062.8,2062.0,0.0011]
[1773331980708,1.28,2062.9,2062.1,0.45710393]
[1773331980908,0.001,2062.9,2062.2,1.21229754]
[1773331981614,0.001,2062.9,2062.1,1.21232452]
[1773331981615,0.50571339,2062.8,2062.1,1.21232452]
[1773331981814,0.50571339,2062.8,2062.0,0.0011]
[1773331981815,0.50571339,2062.7,2062.0,0.0011]
[1773331981994,0.50571339,2062.7,2062.0,1.21350469]
[1773331982516,0.001,2062.9,2062.0,1.67060862]
[1773331982819,0.001,2062.9,2062.1,0.45710393]
[1773331983008,0.50571339,2062.8,2062.2,1.21229754]
[1773331983208,0.50571339,2062.8,2062.1,1.21231322]
[1773331983797,0.001,2062.9,2062.2,0.45710393]
[1773331984016,4.84648013,2063.4,2062.1,6.31092365]
[1773331984219,1.28,2063.3,2062.4,3.07169448]
[1773331984533,1.28,2063.3,2062.1,3.6963331]
[1773331984534,0.50571339,2063.7,2062.8,0.45710393]
[1773331985195,5.08786345,2063.9,2063.0,2.61459055]
[1773331985196,0.50671339,2063.9,2063.0,2.61459055]
[1773331985439,0.50671339,2063.9,2063.0,3.07169448]
[1773331985901,0.50671339,2063.9,2063.3,3.07169448]
[1773331985902,0.001,2063.9,2063.3,3.07169448]
[1773331986750,1.71780163,2064.3,2063.4,0.45710393]
[1773331987100,0.50671339,2064.3,2063.5,1.2115338]
[1773331987402,0.50571339,2064.2,2063.1,3.07169448]
[1773331987595,0.50571339,2064.2,2063.2,1.21170996]
[1773331988034,0.50571339,2064.2,2063.2,1.66881389]
[1773331988517,3.12030394,2064.2,2063.2,1.21170996]
[1773331988834,0.50571339,2064.1,2063.2,1.21170996]
[1773331989138,1.21124031,2064.0,2063.0,4.84683986]
[1773331989314,1.21124031,2064.0,2063.0,5.30394379]
[1773331990001,1.7169537,2064.0,2063.0,5.30394379]
[1773331990206,1.21122389,2064.1,2063.1,0.45710393]
[1773331990496,2.9967965,2064.3,2063.3,0.45710393]
[1773331991016,2.99678416,2064.3,2063.3,0.45710393]
[1773331991216,2.99678416,2064.3,2063.4,1.21159251]
[1773331991414,2.99678416,2064.3,2063.6,0.45710393]
[1773331991415,0.001,2064.3,2063.6,0.45710393]
[1773331991916,4.84282342,2065.0,2064.0,2.61459055]
[1773331991917,0.50571339,2065.0,2064.0,2.61459055]
[1773331992123,0.50571339,2065.0,2064.0,3.07169448]
[1773331992322,1.21063208,2065.1,2064.1,0.45710393]
[1773331992525,1.21074086,2064.9,2064.1,0.45710393]
[1773331992725,1.21077324,2064.8,2063.8,0.45710393]
[1773331992921,1.21069212,2065.0,2064.0,2.61459055]
[1773331993101,1.21066434,2065.0,2064.1,0.45710393]
[1773331993309,0.50571339,2064.6,2063.5,5.30311926]
[1773331993833,0.50571339,2064.6,2063.7,2.61459055]
[1773331994023,0.50671339,2064.5,2063.5,1.2115338]
[1773331994729,1.78471339,2064.5,2063.5,1.2115338]
[1773331995309,1.71769159,2064.5,2063.5,1.2115338]
[1773331995515,1.71769159,2064.5,2063.5,1.66863773]
[1773331997228,1.71769159,2064.5,2063.6,0.02633767]
[1773331997229,0.50571339,2064.4,2063.6,0.02633767]
[1773331997406,1.21106428,2064.3,2063.5,1.2115338]
[1773331997608,0.001,2064.5,2063.7,2.61459055]
[1773331997805,0.001,2064.5,2063.8,0.45710393]
[1773331998004,0.001,2064.5,2064.0,2.61459055]
[1773331998818,0.001,2064.5,2063.5,1.66863773]
[1773331998819,1.21195419,2064.5,2063.5,1.66863773]
[1773331999137,1.71766758,2064.5,2063.5,1.66863773]
[1773331999861,0.001,2064.5,2063.8,0.45710393]
[1773332000146,2.01388193,2064.7,2063.8,0.45710393]
[1773332000343,0.50571339,2064.6,2063.5,1.66863773]
[1773332000712,0.50571339,2064.6,2063.6,0.48867329]
[1773332001532,1.68925856,2064.5,2063.7,1.21141638]
[1773332001746,0.4783116,2064.4,2063.4,1.21159251]
[1773332002129,0.4783116,2064.4,2063.4,1.7002658]
[1773332002316,1.21094696,2064.5,2063.4,1.7002658]
[1773332002317,1.21092982,2064.6,2063.6,3.09792481]
[1773332002512,2.49222323,2064.7,2063.7,0.48867329]
[1773332002742,0.80303242,2064.7,2064.2,2.60925152]
[1773332003157,0.80303242,2064.7,2064.0,0.48867329]
[1773332003158,0.4783116,2065.4,2064.5,2.60925152]
[1773332003329,1.69081271,2065.3,2064.2,0.48867329]
[1773332003641,1.69081271,2065.3,2064.4,1.21100561]
[1773332003846,0.4783116,2065.2,2064.4,1.21100561]
[1773332004049,0.4783116,2065.0,2063.9,1.21129899]
[1773332004751,0.4783116,2064.7,2063.3,4.84638072]
[1773332005048,6.382,2064.9,2063.3,1.21165123]
[1773332005049,0.4783116,2064.4,2063.3,1.21165123]
[1773332005418,0.4783116,2064.4,2063.0,1.21182743]
[1773332005623,0.4783116,2064.2,2063.0,1.21182743]
[1773332006536,0.4783116,2064.2,2064.0,0.001]
[1773332007052,0.4783116,2064.1,2063.0,1.21182743]
[1773332007493,0.4783116,2064.1,2063.8,0.001]
[1773332007637,1.21124031,2064.0,2063.8,0.001]
[1773332007850,0.4783116,2063.9,2063.5,0.001]
[1773332008524,0.4783116,2063.7,2062.7,1.21196751]
[1773332008724,1.7533116,2063.6,2062.7,1.21196751]
[1773332008924,0.4783116,2063.6,2062.8,2.60925152]
[1773332009848,2.59687953,2063.9,2062.9,1.21188617]
[1773332009849,1.68961879,2063.9,2062.9,1.21188617]
[1773332010019,1.68961879,2063.9,2063.0,0.02596635]
[1773332010221,5.32284037,2064.2,2063.1,3.09792481]
[1773332010443,1.68943455,2064.2,2063.2,0.02596383]
[1773332010621,0.4783116,2064.2,2063.1,3.09792481]
[1773332010817,0.4783116,2064.2,2063.4,2.60925152]
[1773332011032,0.4783116,2064.7,2063.4,2.60925152]
[1773332011233,0.4783116,2064.7,2063.4,3.09792481]
[1773332011234,0.4783116,2064.6,2063.4,3.09792481]
[1773332011625,0.4783116,2064.6,2063.5,0.02606068]
[1773332011847,1.21094696,2064.5,2063.6,1.21147509]
[1773332012047,0.4783116,2064.4,2063.2,1.21170996]
[1773332012257,0.4783116,2064.2,2063.2,1.21170996]
[1773332012763,1.21094696,2064.5,2063.3,3.09792481]
[1773332012764,1.7533116,2064.4,2063.3,3.09792481]
[1773332013255,0.4783116,2064.4,2063.3,3.09792481]
[1773332013460,1.21092839,2064.6,2063.6,2.60925152]
[1773332013673,0.4783116,2064.7,2063.6,2.60925152]
[1773332013961,0.4803116,2065.1,2063.9,2.60925152]
[1773332014161,4.84268916,2065.0,2063.9,2.60925152]
[1773332014358,5.32100076,2065.0,2063.9,2.60925152]
[1773332014654,0.4783116,2064.9,2063.8,1.21135768]
[1773332015351,1.7523116,2064.9,2063.8,1.70003097]
[1773332015862,0.4783116,2064.8,2063.8,1.21135768]
[1773332016081,1.68914126,2064.7,2063.7,4.84543075]
[1773332016373,1.274,2065.0,2064.1,2.60925152]
[1773332016736,1.69091001,2065.1,2064.3,2.60925152]
[1773332016737,0.002,2065.1,2064.3,2.60925152]
[1773332017040,1.21259851,2065.1,2064.3,2.60925152]
[1773332017348,0.002,2065.1,2064.1,0.48867329]
[1773332017829,0.002,2065.1,2064.6,2.60925152]
[1773332018031,0.002,2065.1,2064.7,1.21082966]
[1773332019169,0.002,2065.3,2064.7,1.21082966]
[1773332020557,0.002,2065.5,2064.7,1.21082966]
[1773332020943,0.002,2065.5,2064.9,2.60925152]
[1773332021160,0.002,2065.6,2064.9,2.60925152]
[1773332021838,1.20998584,2066.2,2065.2,2.60925152]
[1773332022133,1.20998584,2066.2,2065.0,1.94267329]
[1773332022134,0.002,2065.1,2065.0,5.76257856]
[1773332022351,1.21006776,2066.0,2065.0,5.76257856]
[1773332022547,1.21006776,2066.0,2065.0,2.66465375]
[1773332022548,0.4783116,2065.9,2065.0,2.66465375]
[1773332022987,4.84027105,2066.1,2065.1,3.09792481]
[1773332022988,1.21005634,2066.1,2065.1,3.09792481]
[1773332023735,4.39184691,2066.3,2065.4,2.60925152]
[1773332023942,1.6882507,2066.3,2065.4,2.60925152]
[1773332024338,1.6882507,2066.3,2065.5,1.21036068]
[1773332024775,0.49181213,2066.2,2065.2,1.2105365]
[1773332025660,0.49181213,2066.2,2065.2,1.66939052]
[1773332025843,0.49181213,2066.2,2065.2,1.2105365]
[1773332026044,0.49181213,2066.2,2065.1,1.21057234]
[1773332026553,0.49181213,2066.0,2065.1,1.21057234]
[1773332027031,0.49181213,2066.0,2065.0,2.66461073]
[1773332027862,0.49181213,2066.0,2064.9,1.21068216]
[1773332028140,1.21000919,2066.1,2064.8,1.21076487]
[1773332028141,0.49181213,2065.8,2064.8,1.21076487]
[1773332028340,0.49181213,2065.8,2064.5,1.453]
[1773332028341,0.49181213,2065.5,2064.5,1.453]
[1773332028546,0.49181213,2065.3,2064.5,2.66392237]
[1773332028966,0.49181213,2065.3,2064.4,1.21097327]
[1773332030574,0.49181213,2065.3,2063.9,4.84515424]
[1773332030575,0.47362617,2065.1,2063.9,4.84515424]
[1773332030779,0.47362617,2065.0,2063.9,4.84515424]
[1773332030951,0.47362617,2065.0,2064.0,2.60925152]
[1773332031374,0.47362617,2065.0,2063.9,4.84515424]
[1773332031576,0.47362617,2065.0,2064.0,2.60925152]
[1773332031779,0.47362617,2065.0,2064.0,3.07595014]
[1773332032276,0.47362617,2065.0,2064.0,2.60925152]
[1773332032577,0.47362617,2064.8,2063.8,3.82055051]
[1773332034173,0.47362617,2064.8,2063.8,4.28724913]
[1773332034378,1.210683,2065.0,2064.1,2.60925152]
[1773332034575,0.47362617,2065.1,2064.2,1.21112295]
[1773332034778,0.47362617,2065.1,2064.4,2.60925152]
[1773332035280,0.002,2064.7,2064.4,2.60925152]
[1773332035477,1.68406718,2065.4,2064.4,3.07595014]
[1773332035677,0.002,2064.9,2064.4,3.07595014]
[1773332036053,0.002,2064.9,2064.2,1.21112295]
[1773332036461,0.47562617,2064.9,2064.1,1.21115394]
[1773332037670,0.002,2064.9,2064.3,2.60925152]
[1773332037864,0.002,2064.9,2064.1,1.21115394]
[1773332038185,0.002,2064.9,2064.1,1.67785256]
[1773332038686,0.002,2064.9,2064.3,1.21106428]
[1773332040194,0.002,2064.9,2064.4,2.60925152]
[1773332040568,0.002,2065.2,2064.5,1.21094696]
[1773332041071,0.002,2065.2,2064.2,1.21112295]
[1773332041072,0.47562617,2065.2,2064.2,1.21112295]
[1773332041487,0.47562617,2065.2,2064.2,1.67782157]
[1773332041889,0.47562617,2065.2,2064.3,2.60925152]
[1773332042068,0.002,2065.2,2064.4,0.46669862]
[1773332042398,0.002,2065.2,2064.6,3.07595014]
[1773332042692,0.002,2065.2,2064.7,1.21082966]
[1773332043293,0.47562617,2065.2,2064.0,4.52895014]
[1773332043472,0.47562617,2065.2,2064.1,1.21118162]
[1773332044896,1.68422129,2065.1,2064.1,1.21118162]
[1773332045313,1.68422129,2065.1,2064.1,1.67788024]
[1773332045516,0.47362617,2065.0,2064.1,1.21118162]
[1773332046495,0.47362617,2065.0,2064.2,2.60925152]
[1773332046826,1.21254056,2065.2,2064.2,3.07595014]
[1773332047038,0.47362617,2065.1,2064.3,1.21106428]
[1773332047792,0.47362617,2065.1,2064.1,4.84462589]
[1773332047992,0.47362617,2065.1,2064.1,1.21118162]
[1773332048223,0.47362617,2065.1,2063.8,1.21135768]
[1773332048439,0.47362617,2065.1,2063.9,0.46669862]
[1773332048643,0.47362617,2065.1,2064.2,2.60925152]
[1773332049125,0.47362617,2065.0,2064.3,1.21206428]
[1773332049497,1.21256473,2065.2,2064.3,1.21206428]
[1773332049691,1.6861909,2065.2,2064.3,1.21206428]
[1773332050404,0.47362617,2065.1,2064.3,1.21206428]
[1773332050831,0.47362617,2065.1,2064.3,3.8213158]
[1773332051004,1.68427992,2065.0,2064.3,0.001]
[1773332051199,0.47362617,2064.9,2064.3,0.001]
[1773332052103,0.47362617,2064.9,2064.3,0.02372545]
[1773332053135,1.68439718,2064.8,2064.3,1.21201551]
[1773332054108,1.68439718,2064.8,2064.3,1.21203115]
[1773332054732,0.47362617,2064.8,2064.3,1.21203115]
[1773332055132,12.5594338,2065.2,2064.4,0.04844021]
[1773332055133,1.68422129,2065.1,2064.4,0.04844021]
[1773332055705,0.47362617,2065.1,2064.4,0.04844021]
[1773332057528,0.002,2065.2,2064.6,2.60925152]
[1773332057736,0.002,2065.2,2064.6,2.65768703]
[1773332057934,0.002,2065.2,2064.6,3.12438565]
[1773332058139,0.002,2065.4,2064.9,2.60925152]
[1773332058340,0.002,2065.4,2064.7,0.46669862]
[1773332059544,0.002,2065.4,2064.8,1.21077101]
[1773332059726,0.002,2065.4,2064.8,1.67746963]
[1773332060128,0.002,2065.4,2064.9,2.60925152]
[1773332060857,0.002,2065.4,2064.9,3.06247817]
[1773332061061,0.48451074,2066.1,2065.3,0.45322665]
[1773332061364,1.69439169,2066.4,2065.3,0.45322665]
[1773332061660,1.69439169,2066.4,2065.4,1.21041928]
[1773332061661,0.48451074,2066.3,2065.4,1.21041928]
[1773332061954,0.48451074,2066.3,2065.3,7.89907843]
[1773332061955,0.48451074,2066.3,2065.3,1.21044525]
[1773332062531,0.48451074,2066.3,2065.3,3.81461988]
[1773332063545,0.48451074,2066.2,2065.3,3.81461988]
[1773332065467,0.48451074,2066.5,2065.7,1.2102435]
[1773332065830,1.69429769,2066.5,2065.7,1.66347015]
[1773332066156,0.002,2066.0,2065.7,1.66347015]
[1773332066357,0.48451074,2066.5,2065.7,1.66347015]
[1773332066864,0.002,2066.2,2065.7,1.66347015]
[1773332067889,0.48651074,2066.5,2065.9,2.60417463]
[1773332067890,0.002,2066.5,2065.9,2.60417463]
[1773332068491,0.48451074,2067.1,2066.3,2.60417463]
[1773332068795,0.48451074,2067.1,2065.8,3.05740128]
[1773332068976,1.20924833,2067.4,2065.6,1.21030209]
[1773332068977,0.48451074,2066.8,2065.6,1.21030209]
[1773332069177,0.48451074,2066.8,2065.3,1.97576265]
[1773332069178,0.48451074,2066.7,2065.3,1.97576265]
[1773332069492,0.48451074,2066.5,2065.4,4.84167197]
[1773332069991,0.48451074,2066.5,2065.3,3.12066844]
[1773332070209,0.48451074,2066.5,2065.3,1.457]
[1773332070493,0.48451074,2066.3,2065.3,2.66744599]
[1773332071058,0.48451074,2066.3,2065.4,0.03006931]
[1773332071414,0.48451074,2066.3,2065.3,2.66744599]
[1773332071582,0.48451074,2066.1,2065.3,2.66744599]
[1773332071898,0.48451074,2066.1,2065.3,3.12067264]
[1773332073602,1.21006776,2066.0,2065.3,3.12067264]
[1773332074502,0.48451074,2066.9,2065.6,2.60417463]
[1773332075001,0.48451074,2066.9,2065.4,0.45322665]
[1773332075002,0.48451074,2066.8,2065.4,0.45322665]
[1773332075228,2.60417463,2066.9,2065.3,2.66744599]
[1773332075229,0.48451074,2066.5,2065.3,2.66744599]
[1773332075529,0.48451074,2066.5,2065.3,3.12067264]
[1773332075704,0.48451074,2066.3,2065.3,3.12067264]
[1773332076090,0.48451074,2066.3,2065.5,2.60417463]
[1773332076291,4.83877413,2066.7,2065.5,2.60417463]
[1773332076292,0.48451074,2067.2,2065.8,2.60417463]
[1773332076491,0.48451074,2067.0,2065.8,2.60417463]
[1773332076729,0.48451074,2067.0,2065.8,3.05740128]
[1773332077522,0.48451074,2067.0,2066.1,2.60417463]
[1773332077819,0.48451074,2066.8,2066.0,1.21006776]
[1773332078118,0.48451074,2066.8,2065.6,1.21028132]
[1773332078119,0.48451074,2066.7,2065.6,1.21028132]
[1773332078421,0.48451074,2066.7,2065.3,6.81863858]
[1773332078422,0.48451074,2066.6,2065.4,1.21038541]
[1773332079196,0.48451074,2066.6,2065.4,1.66361206]
[1773332079420,0.48451074,2066.6,2065.5,0.45322665]
[1773332080020,0.48451074,2066.6,2065.5,1.66353856]
[1773332080021,0.48451074,2066.4,2065.5,1.66353856]
[1773332080406,0.48451074,2066.4,2065.7,2.60417463]
[1773332081701,4.83909992,2066.7,2065.8,0.45322665]
[1773332081702,0.48451074,2066.7,2065.8,0.45322665]
[1773332082201,1.69417843,2066.7,2066.0,2.60417463]
[1773332082599,0.002,2066.4,2066.0,2.60417463]
[1773332082836,0.002,2066.4,2065.9,1.21012633]
[1773332083031,0.002,2066.4,2065.7,7.44467997]
[1773332083032,0.002,2066.4,2065.7,2.60417463]
[1773332083227,0.48651074,2066.4,2065.8,1.21018301]
[1773332083423,0.48651074,2066.4,2065.6,1.210262]
[1773332083622,0.48651074,2066.4,2065.7,4.0]
[1773332084050,1.66556516,2066.3,2065.7,4.0]
[1773332084254,0.45567309,2066.3,2065.7,7.81440703]
[1773332084461,0.45567309,2066.3,2065.7,3.81440703]
[1773332084631,0.45567309,2066.3,2065.6,1.2102591]
[1773332085759,1.21183993,2066.4,2065.8,2.60417463]
[1773332085930,0.002,2066.4,2065.8,2.60417463]
[1773332086130,0.002,2066.4,2065.9,1.21012633]
[1773332086639,0.002,2066.4,2065.8,3.81431096]
[1773332089760,0.45767309,2066.4,2065.8,3.81431096]
[1773332090289,1.20989207,2066.3,2065.7,1.21020408]
[1773332090784,1.66751516,2066.4,2065.8,2.60417463]
[1773332090982,0.002,2066.4,2065.8,2.60417463]
[1773332091279,0.002,2066.4,2065.8,3.09455424]
[1773332091876,1.21183956,2066.4,2065.8,3.09455424]
[1773332092257,0.002,2066.4,2065.8,4.30469784]
[1773332092681,0.002,2066.4,2065.5,2.66835379]
[1773332092682,0.46838847,2066.4,2065.5,2.66835379]
[1773332093686,0.46838847,2066.4,2065.5,1.458]
[1773332094258,0.46638847,2066.2,2065.5,1.458]
[1773332094459,0.46638847,2066.1,2065.5,0.001]
[1773332097190,0.46638847,2065.9,2065.3,0.001]
[1773332099691,0.46638847,2065.9,2065.3,1.21147789]
[1773332099692,1.67651908,2065.9,2065.3,1.21147789]
[1773332099859,0.46638847,2065.9,2065.5,0.001]
[1773332100066,1.67653133,2065.9,2065.5,0.001]
[1773332100261,0.46638847,2065.8,2065.5,0.001]
[1773332101193,1.20999853,2066.2,2065.6,0.49037961]
[1773332101521,1.20999853,2066.2,2065.5,0.001]
[1773332101522,0.46638847,2066.2,2065.5,0.001]
[1773332101665,0.46638847,2066.0,2065.5,0.001]
[1773332102269,0.46638847,2066.0,2065.3,0.001]
[1773332102487,0.46638847,2066.0,2065.3,0.49137961]
[1773332102690,0.46638847,2065.7,2065.3,0.001]
[1773332102860,0.46638847,2065.5,2065.3,0.001]
[1773332103469,3.17486733,2065.8,2065.3,0.001]
[1773332103681,0.46638847,2065.7,2065.3,0.001]
[1773332103994,1.6765086,2066.0,2065.3,0.001]
[1773332104184,0.46638847,2066.0,2065.3,0.49137961]
[1773332104391,0.46638847,2066.0,2065.4,0.04067855]
[1773332104698,0.46638847,2066.0,2065.3,0.001]
[1773332106109,1.21012633,2065.9,2065.3,0.001]
[1773332106411,1.6765148,2065.9,2065.3,0.001]
[1773332106578,0.46638847,2065.8,2065.3,0.001]
[1773332106782,7.44416037,2066.2,2065.3,0.001]
[1773332106783,0.46638847,2066.2,2065.3,0.001]
[1773332107080,0.46638847,2066.1,2065.3,0.001]
[1773332107482,0.46638847,2066.1,2064.6,2.60517463]
[1773332107483,0.46638847,2066.1,2064.7,2.66779669]
[1773332107681,10.17712526,2066.2,2064.7,2.66779669]
[1773332107682,0.46638847,2065.7,2064.7,2.66779669]
[1773332108083,0.46638847,2065.7,2064.6,5.33469825]
[1773332108084,0.46638847,2065.5,2064.6,0.001]
[1773332108290,0.46638847,2065.5,2064.7,0.49037961]
[1773332108679,0.46638847,2065.5,2064.6,1.21188376]
[1773332109785,4.84120836,2065.7,2064.9,3.09455424]
[1773332109786,1.21025573,2065.7,2064.9,3.09455424]
[1773332109991,4.38509436,2065.8,2064.9,3.09455424]
[1773332110225,4.38509436,2065.8,2065.0,1.21065375]
[1773332111021,1.21015995,2065.9,2065.2,2.60417463]
[1773332111321,0.46638847,2066.1,2065.2,2.60417463]
[1773332111522,0.46638847,2066.1,2065.2,3.09455424]
[1773332111821,0.46638847,2066.1,2065.3,0.49037961]
[1773332112193,0.46638847,2066.1,2065.3,3.09455424]
[1773332112493,0.46638847,2066.1,2065.4,1.21041928]
[1773332112718,1.20999468,2066.2,2065.4,1.21041928]
[1773332112719,0.002,2066.3,2065.4,1.21041928]
[1773332112938,1.67828571,2066.3,2065.4,1.70079889]
[1773332113149,0.46638847,2066.2,2065.1,0.49037961]
[1773332113460,0.46638847,2066.2,2065.5,2.60417463]
[1773332113620,0.46638847,2066.2,2065.3,0.49037961]
[1773332114438,1.67639157,2066.2,2065.4,1.70079889]
[1773332114944,0.46638847,2066.2,2065.4,1.70079889]
[1773332115147,1.67635856,2066.2,2065.4,1.70079889]
[1773332115639,1.2118988,2066.3,2065.5,0.49037961]
[1773332116230,1.21189824,2066.3,2065.6,0.49137961]
[1773332116427,0.002,2066.3,2065.7,1.2102435]
[1773332116750,0.002,2066.3,2065.6,5.33244828]
[1773332116751,0.002,2066.1,2065.6,1.21128907]
[1773332117716,0.002,2066.1,2065.8,2.60417463]
[1773332118743,0.002,2066.1,2065.9,1.21012633]
[1773332119125,0.002,2066.1,2065.7,1.21023397]
[1773332119448,0.002,2066.1,2065.7,4.30478821]
[1773332119656,0.002,2066.1,2065.6,1.21127058]
[1773332119831,0.002,2066.1,2065.6,1.21129272]
[1773332121259,0.45691657,2065.9,2065.1,1.2115894]
[1773332122040,0.45691657,2065.9,2065.1,1.21158585]
[1773332122524,0.40849745,2065.9,2065.1,0.001]
[1773332122729,1.66710148,2065.8,2065.1,0.001]
[1773332124035,0.45691657,2065.8,2065.1,0.001]
[1773332124254,1.21202108,2066.1,2065.4,3.10460017]
[1773332124568,1.21202108,2066.1,2065.4,0.49912555]
[1773332124729,0.45691657,2066.0,2065.1,0.50012555]
[1773332124935,0.45691657,2066.0,2065.1,1.21157634]
[1773332125130,0.45691657,2066.0,2065.1,1.21157861]
[1773332125551,0.45691657,2066.0,2065.1,0.001]
[1773332125741,0.45691657,2066.0,2065.1,1.21159187]
[1773332125936,0.45691657,2066.0,2065.1,1.21157751]
[1773332126162,0.45691657,2066.0,2065.1,0.001]
[1773332126330,0.45691657,2065.7,2065.1,0.001]
[1773332126841,1.21030209,2065.6,2065.1,0.001]
[1773332127046,0.45691657,2065.5,2065.1,0.001]
[1773332128355,4.84092352,2065.8,2065.1,0.001]
[1773332128356,1.21019487,2065.8,2065.1,0.001]
[1773332128980,5.2989712,2066.1,2065.1,0.001]
[1773332128981,0.45891657,2066.1,2065.1,1.71072067]
[1773332129181,1.21204797,2066.1,2065.3,3.10460017]
[1773332129382,0.002,2066.1,2065.3,3.10460017]
[1773332129567,0.002,2066.1,2065.4,0.49912555]
[1773332129968,0.002,2066.1,2065.5,1.454]
[1773332130178,0.002,2066.1,2065.5,4.05947462]
[1773332130357,0.002,2066.3,2065.8,2.60547462]
[1773332130767,0.002,2066.5,2065.9,0.49912555]
[1773332131004,5.29529028,2067.0,2066.1,3.10460017]
[1773332131005,1.66643822,2067.0,2066.1,3.10460017]
[1773332131297,0.61098295,2067.7,2066.8,0.49912555]
[1773332131298,2.13486467,2067.5,2066.8,0.49912555]
[1773332131460,0.92566078,2067.5,2067.0,2.60547462]
[1773332131662,5.29181861,2068.3,2067.1,0.49912555]
[1773332131861,0.45691657,2068.0,2067.0,1.454]
[1773332132594,0.45691657,2068.0,2066.8,0.49912555]
[1773332132789,0.45691657,2068.1,2066.9,1.453]
[1773332133001,1.20889748,2068.0,2067.0,1.20948234]
[1773332133202,1.20889748,2068.0,2067.0,1.70860789]
[1773332133867,1.20889748,2068.0,2067.0,0.49912555]
[1773332133868,1.66581405,2068.0,2067.0,0.49912555]
[1773332134204,1.66581405,2068.0,2067.0,2.60547462]
[1773332134797,1.66581405,2068.0,2067.0,3.10460017]
[1773332135112,1.20889748,2068.0,2067.1,1.70854938]
[1773332135407,1.19698975,2068.0,2067.1,1.70854938]
[1773332135606,4.83558994,2068.1,2067.3,3.10460017]
[1773332135607,1.20883903,2068.1,2067.3,3.10460017]
[1773332135783,1.19692832,2068.1,2067.3,3.10460017]
[1773332135993,1.18501463,2068.1,2067.3,3.10460017]
[1773332136186,0.45691657,2068.0,2067.0,1.70859807]
[1773332136404,0.45691657,2068.0,2067.1,1.452]
[1773332136776,0.45691657,2068.0,2066.7,1.70873762]
[1773332136981,0.45691657,2068.0,2066.9,1.20954085]
[1773332136982,0.45691657,2067.8,2066.9,1.20954085]
[1773332137183,0.45691657,2067.8,2066.5,4.83909836]
[1773332137184,0.45691657,2067.6,2066.4,1.70893935]
[1773332137380,0.45691657,2067.6,2066.5,1.452]
[1773332139412,1.20918984,2067.5,2066.6,1.20971644]
[1773332139710,1.66610641,2067.5,2066.6,1.20971644]
[1773332140496,0.45691657,2067.4,2066.5,1.452]
[1773332140697,0.45691657,2067.2,2066.5,1.452]
[1773332141027,0.45691657,2067.2,2065.7,4.84073966]
[1773332141196,1.35867483,2067.5,2065.9,0.49912555]
[1773332141197,0.45691657,2067.0,2065.9,0.49912555]
[1773332141393,1.66645742,2066.9,2066.0,1.21006776]
[1773332141691,1.20954085,2066.9,2065.9,1.70923131]
[1773332141892,0.45691657,2066.8,2065.9,1.21010576]
[1773332142929,0.45691657,2066.8,2065.7,4.31479709]
[1773332143324,4.83816343,2067.0,2066.1,0.49912555]
[1773332143521,4.83816343,2067.0,2066.1,1.94912555]
[1773332143899,5.3232992,2067.0,2066.1,1.45]